Cogmind - Beta 16 @@@ ROGUE MODE // 2025.12.27 @ 21:13:32 Player: AlStar Result: Destroyed by Y-45 Defender with Heavy Assault Rifle Performance ------------- Evolutions (0) 0 Regions Visited (4) 800 Robots Destroyed (15) 75 Value Destroyed (308) 308 Prototype IDs (0) 0 Alien Tech Used (0) 0 Bonus (0) 0 TOTAL SCORE: 1183 Bonus ------- None Cogmind --------- Core Integrity 0/250 Matter 253/300 Energy 98/100 System Corruption 0% Temperature Cool (9) Movement Walking (120) Location -9/Recycling Parts ------- > --- POWER (1) -------- Subdweller Power Source > --- PROPULSION (2) --- Aluminum Leg Carbon-fiber Leg > --- UTILITY (2) ------ Improved Heat Sink Propulsion Shielding > --- WEAPON (2) ------- Subdweller Laser Plasma Cutter > --- INVENTORY (5) ---- Subdweller Monowheel Subdweller Monowheel Makeshift Light Armor Plating Autogun Grenade Launcher Peak State ------------ > --- POWER ------------ Subdweller Power Source > --- PROPULSION ------- Aluminum Leg Carbon-fiber Leg > --- UTILITY ---------- Improved Heat Sink Subdweller Optics > --- WEAPON ----------- Subdweller Laser Subdweller Beam Cannon > --- INVENTORY -------- Subdweller Power Source Subdweller Monowheel Subdweller Monowheel Makeshift Light Armor Plating Grenade Launcher [Rating: 16] Favorites ----------- Power Subdweller Power Source Engine Subdweller Power Source Propulsion Aluminum Leg Leg Aluminum Leg Utility Improved Heat Sink Device Improved Heat Sink Protection Propulsion Shielding Weapon Subdweller Laser Energy Gun Subdweller Laser Energy Cannon Subdweller Beam Cannon Ballistic Gun Autogun Launcher Grenade Launcher Special Weapon Plasma Cutter Build | -11 -10 -10 -10 -9 ------- Run | Yrd Mat Min Sub Rec Slots Evolved . | . . . . . Power . | . . . . . Propulsion . | . . . . . Utility . | . . . . . Weapon . | . . . . . Parts Attached 27 | 5 7 . 10 5 Power 5 | 1 1 . 2 1 Engine 5 | 1 1 . 2 1 Core . | . . . . . Reactor . | . . . . . Propulsion 6 | 2 2 . 2 . Treads . | . . . . . Leg 6 | 2 2 . 2 . Wheel . | . . . . . Hover . | . . . . . Flight . | . . . . . Utility 7 | . 2 . 4 1 Device 5 | . 2 . 3 . Storage . | . . . . . Processor . | . . . . . Hackware . | . . . . . Protection 2 | . . . 1 1 Artifact . | . . . . . Weapon 9 | 2 2 . 2 3 Energy Gun 2 | 1 . . 1 . Energy Cannon 2 | . 1 . 1 . Ballistic Gun 2 | 1 . . . 1 Ballistic Cannon . | . . . . . Launcher 1 | . 1 . . . Special Weapon 2 | . . . . 2 Impact Weapon . | . . . . . Slashing Weapon . | . . . . . Piercing Weapon . | . . . . . Special Melee Weapon . | . . . . . Unidentified Prototypes . | . . . . . Parts Lost 4 | . . . 4 . Power 1 | . . . 1 . Propulsion 1 | . . . 1 . Utility 1 | . . . 1 . Weapon 1 | . . . 1 . Highest Loss Streak 4 | . . . 4 . To Critical Strikes . | . . . . . Average Backups 4 | 2 4 5 4 5 Power . | . 1 1 . . Propulsion 1 | . . 1 1 2 Utility . | . 1 1 . 1 Weapon 1 | . 1 2 1 1 Tool/Special . | . . . . . Unused Backups 5 | . . . 2 3 Power . | . . . . . Propulsion 2 | . . . . 2 Utility 2 | . . . 1 1 Weapon 1 | . . . 1 . Tool/Special . | . . . . . Average Slot Usage (%) 96 | . 89 100 95 99 Engine 14 | . 14 14 14 14 Leg 27 | . 28 28 27 28 Device 18 | . 18 28 21 15 Protection 6 | . . . 3 12 Energy Gun 13 | . 12 14 14 14 Energy Cannon 8 | . 10 14 13 1 Ballistic Gun 1 | . 2 . . 1 Special Weapon 4 | . . . . 10 Peak Build Rating 16 | 5 7 7 16 16 Average Rating 12 | 3 6 7 11 15 On Entrance 7 | . 5 7 7 16 Avg Prop Armor Cover (%) . | . . . . . Naked Turns . | . . . . . Heaviest Build 28 | 8 12 12 28 20 Greatest Support 25 | 20 20 20 25 25 Greatest Overweight (x) 1 | . . . 1 . Average Overweight (x) . | . . . . . Largest Inventory Capacity 5 | 5 5 5 5 5 Average Capacity 5 | 5 5 5 5 5 Most Carried 5 | 5 5 5 5 5 Average Carried 4 | 2 4 5 4 5 Final Capacity 5 | 5 5 5 5 5 Final Carried 5 | 3 5 5 5 5 Class Distribution -------------------- 72% | Scavenger-Mutant 27% | Mutant Dominant Class ---------------- Mutant | -10/Materials Mutant | -10/Mines Scavenger-Mutant | -10/Subcaves Scavenger-Mutant | -9/Recycling Resources | -11 -10 -10 -10 -9 ----------- Run | Yrd Mat Min Sub Rec Matter Collected 463 | 232 106 . 125 . Remotely . | . . . . . Salvage Created 300 | . 192 . 61 47 Parts 34 | . 24 . 6 4 Haulers Intercepted 1 | . 1 . . . Recyclers Shooed . | . . . . . Parts Field Recycled . | . . . . . Retrieved Matter . | . . . . . Parts Self-Destructed 20 | . . . 20 . Prevented . | . . . . . Parts Restored . | . . . . . Kills | -11 -10 -10 -10 -9 ------- Run | Yrd Mat Min Sub Rec Combat Hostiles Destroyed 13 | . 10 . 2 1 Guns 4 | . 2 . 1 1 Cannons 4 | . 3 . 1 . AOE 5 | . 5 . . . Classes Destroyed 5 | . 4 . . 1 Hauler 1 | . 1 . . . Watcher 1 | . 1 . . . Swarmer 9 | . 8 . 1 . Grunt 3 | . 2 . 1 . Sentry 1 | . . . . 1 Best Kill Streak 4 | . 4 . 1 1 Combat Bots Only 3 | . 3 . 1 1 Max Kills in Single Turn 2 | . 2 . 1 1 Gunslinging . | . . . . . Exploded 2 | . 2 . . . Melee . | . . . . . Uniques/NPCs Destroyed . | . . . . . Combat | -11 -10 -10 -10 -9 -------- Run | Yrd Mat Min Sub Rec Hostile Shots Fired 113 | . 42 . 63 8 Missed 30 | . 13 . 16 1 Hits 83 | . 29 . 47 7 Projectile 83 | . 29 . 47 7 Critical Strikes 1 | . 1 . . . Damage Taken 1155 | . 252 . 795 108 Core 267 | . 57 . 148 62 Absorbed by Shields . | . . . . . Redirected to Shielding 4 | . . . . 4 Core Remaining (%) 100 | 100 . . . . Volleys Fired 43 | . 17 . 16 10 Largest 2 | . 2 . 2 2 Hottest 140 | . 110 . 140 80 Shots Fired 77 | . 34 . 31 12 Gun 35 | . 15 . 16 4 Cannon 30 | . 15 . 15 . Launcher 4 | . 4 . . . Special 8 | . . . . 8 Kinetic . | . . . . . Thermal 73 | . 30 . 31 12 Explosive 4 | . 4 . . . Electromagnetic . | . . . . . Robot Hit Streak 7 | . 7 . 5 2 Robot Miss Streak 3 | . 2 . 3 1 Penetration Max . | . . . . . Secondary Targets . | . . . . . Shots Hit Robots 34 | . 17 . 15 2 Core Hits 22 | . 18 . 3 1 Critical Kills . | . . . . . Critical Parts Destroyed . | . . . . . Critical Strikes 2 | . 1 . 1 . Burn 2 | . 1 . 1 . Melee Attacks . | . . . . . Impact . | . . . . . Slashing . | . . . . . Piercing . | . . . . . Sneak Attacks . | . . . . . Combat Hostiles . | . . . . . Follow-up Attacks . | . . . . . Damage Inflicted 925 | . 646 . 245 34 Guns 241 | . 124 . 95 22 Cannons 273 | . 123 . 150 . Explosions 399 | . 399 . . . Melee . | . . . . . Ramming 1 | . . . . 1 Kinetic . | . . . . . Thermal 525 | . 247 . 245 33 Explosive 399 | . 399 . . . Electromagnetic . | . . . . . Impact . | . . . . . Slashing . | . . . . . Piercing . | . . . . . Highest Corruption . | . . . . . Average Corruption . | . . . . . Corruption Purged . | . . . . . Corruption Blocked . | . . . . . Overload Shots . | . . . . . Overflow Damage 9 | . 9 . . . Projectiles . | . . . . . Explosions 9 | . 9 . . . Melee . | . . . . . Knockbacks . | . . . . . Impact . | . . . . . Kinetic . | . . . . . Secondary . | . . . . . Self-Inflicted Damage . | . . . . . Shots . | . . . . . Rammed . | . . . . . Targets Rammed 1 | . . . . 1 Kicked 1 | . . . . 1 Crushed . | . . . . . Highest Temperature 216 | . 216 . 24 . Average Temperature 60 | . 70 . 13 . Received Heat Transfer 174 | . 36 . 102 36 Siege Activations . | . . . . . Martial Activations . | . . . . . Shielding Activations . | . . . . . Robots Disrupted . | . . . . . Combat Hostiles . | . . . . . Robots Corrupted . | . . . . . Combat Hostiles . | . . . . . Parts Fried . | . . . . . Impact Corruptions . | . . . . . Robots Melted . | . . . . . Combat Hostiles . | . . . . . Parts Melted 1 | . 1 . . . Heat Transferred 1333 | . 703 . 568 62 Parts Sabotaged . | . . . . . Parts Stolen . | . . . . . Parts Stripped . | . . . . . Power Chain Reactions . | . . . . . Alert | -11 -10 -10 -10 -9 ------- Run | Yrd Mat Min Sub Rec Maximum Alert Level . | . . . . . Low Security (%) 100 | 100 100 100 . 100 Level 1 . | . . . . . Level 2 . | . . . . . Level 3 . | . . . . . Level 4 . | . . . . . Level 5 . | . . . . . High Security . | . . . . . Max Security . | . . . . . Peak Influence 199 | . 199 73 . 20 Initial 73 | . . 73 . 13 Average 26 | . 100 64 . 3 Influence Increases 469 | . 274 . 95 100 Destroy 0b10 Robot/C 260 | . 200 . 40 20 Destroy 0b10 Robot/NC 10 | . 10 . . . Destroy Leader 44 | . 34 . 10 . Successful Hack 25 | . 5 . . 20 Disable Machine 60 | . . . . 60 Destroy Structure 25 | . 25 . . . Lose Combat Pursuer 45 | . . . 45 . Influence Decreases 469 | . 85 136 119 129 Entered New Map 161 | . . 116 29 16 Time Decay 308 | . 85 20 90 113 Squads Dispatched . | . . . . . Investigation . | . . . . . Extermination . | . . . . . Reinforcement . | . . . . . Assault . | . . . . . Garrison . | . . . . . Intercept . | . . . . . Searches Triggered . | . . . . . Construction Impeded . | . . . . . Haulers Reinforced . | . . . . . Active Scanning Responses . | . . . . . Cargo Convoy Interrupts . | . . . . . Stealth | -11 -10 -10 -10 -9 --------- Run | Yrd Mat Min Sub Rec Distress Signals 2 | . 2 . . . Communications Jammed . | . . . . . Distress Signals . | . . . . . Times Spotted 37 | . 14 . 21 2 Peak Tracking Total 6 | . 3 . 6 1 Tactical Retreats 2 | . . . 2 . Traps | -11 -10 -10 -10 -9 ------- Run | Yrd Mat Min Sub Rec Traps Triggered 1 | . . . 1 . Indirectly . | . . . . . Trap Hack Attempts . | . . . . . Triggered . | . . . . . Disarmed . | . . . . . Reprogrammed . | . . . . . Reused . | . . . . . Traps Extracted . | . . . . . Installed . | . . . . . Triggered . | . . . . . Machines | -11 -10 -10 -10 -9 ---------- Run | Yrd Mat Min Sub Rec Machines Disabled 5 | . 1 . . 4 Max in Single Turn 1 | . 1 . . 1 Machines Repaired . | . . . . . Machines Dismantled 4 | . . . . 4 Machines Sabotaged . | . . . . . Overloaded Fab Kills . | . . . . . Hacking | -11 -10 -10 -10 -9 --------- Run | Yrd Mat Min Sub Rec Machines Accessed 12 | . 2 . . 10 Terminals 7 | . 1 . . 6 Fabricators . | . . . . . Repair Stations . | . . . . . Recycling Units 5 | . 1 . . 4 Scanalyzers . | . . . . . Garrison Access . | . . . . . Total Hacks 38 | . 9 . . 29 Successful 24 | . 5 . . 19 Failed 14 | . 4 . . 10 Catastrophic . | . . . . . Database Lockouts . | . . . . . Manual 10 | . 4 . . 6 Terminals 26 | . 5 . . 21 Fabricators . | . . . . . Repair Stations . | . . . . . Recycling Units 12 | . 4 . . 8 Scanalyzers . | . . . . . Garrison Access . | . . . . . Terminal Hacks 10 | . 1 . . 9 Robot Schematic 1 | . . . . 1 Robot Analysis 1 | . . . . 1 Level Access Points 1 | . . . . 1 Emergency Access Points 3 | . 1 . . 2 Dispatch Records 1 | . . . . 1 Investigation Status 1 | . . . . 1 Hauler Manifests 1 | . . . . 1 Zone Layout 1 | . . . . 1 Fabricator Hacks . | . . . . . Repair Station Hacks . | . . . . . Recycling Unit Hacks 9 | . 3 . . 6 Process 1 | . 1 . . . Report Inventory 5 | . 1 . . 4 Retrieve Matter 1 | . 1 . . . Retrieve Components 2 | . . . . 2 Scanalyzer . | . . . . . Garrison Access Hacks . | . . . . . Unauthorized Hacks 5 | . 1 . . 4 Terminals 5 | . 1 . . 4 Botnet 5 | . 1 . . 4 Fabricators . | . . . . . Repair Stations . | . . . . . Recycling Units . | . . . . . Scanalyzers . | . . . . . Garrison Access . | . . . . . Data Cores Recovered . | . . . . . Used . | . . . . . Hacking Detections 7 | . . . . 7 Full Trace Events 1 | . . . . 1 Feedback Events . | . . . . . Feedback Blocked . | . . . . . Robot Schematics Acquired 1 | . . . . 1 Robots Built . | . . . . . Authchips . | . . . . . Time . | . . . . . Total Robot Build Rating . | . . . . . Part Schematics Acquired . | . . . . . Parts Built . | . . . . . Authchips . | . . . . . Time . | . . . . . Total Part Build Rating . | . . . . . Part Studies Acquired . | . . . . . Parts Repaired . | . . . . . Time . | . . . . . Parts Recycled . | . . . . . Recycled Matter 42 | . 42 . . . Retrieved Matter 42 | . 42 . . . Retrieved Components 6 | . . . . 6 Parts Scanalyzed . | . . . . . Part Schematics Acquired . | . . . . . Parts Damaged . | . . . . . Bothacking | -11 -10 -10 -10 -9 ------------ Run | Yrd Mat Min Sub Rec Used RIF Installer . | . . . . . Robots Hacked . | . . . . . Non-combat . | . . . . . Combat . | . . . . . Robot Hacks Applied . | . . . . . Relay Couplers Released . | . . . . . Fabnet Peak Effective % . | . . . . . Robots Rewired . | . . . . . Allies Hacked . | . . . . . Hacks Repelled . | . . . . . Allies | -11 -10 -10 -10 -9 -------- Run | Yrd Mat Min Sub Rec Total Allies . | . . . . . Largest Group . | . . . . . Highest-Rated Group . | . . . . . Highest-Rated Ally . | . . . . . Total Orders . | . . . . . Ally Attacks . | . . . . . Total Damage . | . . . . . Kills . | . . . . . Allies Corrupted . | . . . . . Allies Melted . | . . . . . Intel | -11 -10 -10 -10 -9 ------- Run | Yrd Mat Min Sub Rec Active Infowar (turns) 753 | . 182 51 477 43 Optics 517 | . . . 474 43 Terrain 147 | . 93 51 3 . Structural 236 | . 182 51 3 . Robot Analysis Total 1 | . . . . 1 Derelict Logs Recovered 3 | . . 1 2 . Drone Launches . | . . . . . Drone Recoveries . | . . . . . Exploration | -11 -10 -10 -10 -9 ------------- Run | Yrd Mat Min Sub Rec Turns Passed 1620 | 56 201 51 645 667 Spaces Moved 1053 | 39 107 43 439 425 Core 4 | 4 . . . . Treads . | . . . . . Legs 1049 | 35 107 43 439 425 Wheels . | . . . . . Hover . | . . . . . Flight . | . . . . . Fastest Speed 50 | 50 120 120 120 120 Average Speed 124 | 112 120 120 130 120 Slowest Speed 190 | 120 120 120 190 120 Overloaded Moves . | . . . . . Propulsion Burnouts . | . . . . . Robots Hopped . | . . . . . Potential Cave-ins . | . . . . . Cave-ins Triggered . | . . . . . Exploration Rate (%) 38 | 3 27 22 47 91 Regions Visited 4 Branch Regions 3 Pre-discovered Areas 1 | . . 1 . . Known Exits Taken . | . . . . . Unknown Exits Taken 4 | 1 1 1 1 . Scrap Searched 3 | . . . 3 . Spaces Dug . | . . . . . Terrain Destroyed 29 | . 26 . 3 . Melee . | . . . . . Projectile 3 | . . . 3 . AOE 26 | . 26 . . . Terrain Rammed . | . . . . . Walls Destroyed . | . . . . . Machines Disabled . | . . . . . Actions | -11 -10 -10 -10 -9 --------- Run | Yrd Mat Min Sub Rec Total 1246 | 51 144 42 481 528 Wait 63 | . . . . 63 Move 1049 | 38 106 42 438 425 Hop . | . . . . . Pick Up 22 | 8 5 . 8 1 Fast Attach 5 | . . . 3 2 Attach 13 | 5 3 . 5 . Detach . | . . . . . Swap 14 | . 9 . 2 3 Drop 16 | . 4 . 8 4 Fire 43 | . 17 . 16 10 Melee . | . . . . . Ram . | . . . . . Kick 1 | . . . . 1 Crush . | . . . . . Escape Stasis . | . . . . . Rewire 2 | . . . . 2 Trap . | . . . . . Miscellaneous 18 | . . . 1 17 Route ------- -11/Scrapyard -10/Materials -10/Mines -10/Subcaves (discovered 3 exits: [*Mat x2] / *Rec) -9/Recycling (discovered 1 exit: *Fac) History --------- Turn | Location | Event 11 | -11/Scrapyard | Discovered new exit (range 16) 57 | -11/Scrapyard | Entered Materials 196 | -10/Materials | Discovered new exit (range 11) 258 | -10/Materials | Entered Mines 290 | -10/Mines | Discovered new exit (range 16) 302 | -10/Mines | Learned location of Zion (-6) 303 | -10/Mines | Build established: Mutant 309 | -10/Mines | Entered Subcaves 438 | -10/Subcaves | Ambushed by swarm of Subdwellers 447 | -10/Subcaves | Ambushed by Subdwellers from Twisted Machinery 456 | -10/Subcaves | Core integrity fell below 50% 499 | -10/Subcaves | Lost 4 parts (1p1n1u1w) 751 | -10/Subcaves | Build established: Scavenger-Mutant 868 | -10/Subcaves | Discovered new exit (range 11) 872 | -10/Subcaves | Learned 4 Materials zone layouts 902 | -10/Subcaves | Discovered new exit (range 11) 905 | -10/Subcaves | Learned Materials terminal intel 926 | -10/Subcaves | Discovered new exit (range 16) 930 | -10/Subcaves | Core integrity fell below 20% 954 | -10/Subcaves | Entered Recycling 955 | -9/Recycling | Met a Zionite searching for Scraptown 1211 | -9/Recycling | Discovered new exit (range 16) 1229 | -9/Recycling | Identified exit to Factory 1621 | -9/Recycling | Destroyed by Y-45 Defender with Heavy Assault Rifle Last Messages --------------- >>Trojan(Botnet) Trojan loaded successfully. Testing... Terminal linked with 3 systems. Awaiting botnet instructions. >>Access(Emergency) Found 2 emergency access doors: (59,55) (59,57) Map updated. 01470_ Connecting with Terminal... >>Schematic(A-02 Transporter) Downloading schematic... A-02 Transporter Tier: 1 Schematic downloaded. 01594_ Dropped Plasma Cutter. 01621_ Attempting to rewire Y-45 Defender. 01621_ Y-45 Defender is dormant, system inaccessible. 01621_ Y-45 Defender springs to life. Map ----- +----------------------------------------------------+ | | | | | | | | | | | | | | | | | ?????????????????????????????????????????????????? | | ?????????????????????????????????????????????????? | | ?????????????????????????????????????????????????? | | ?????????????????????????????????????????????????? | | ?????????????????????????????????????????????????? | | ?????????????????????????????????????????????????? | | ?????????????????????????????????????????????????? | | ?????????????????????????????????????????????????? | | ?????????????????????????????????????????????????? | | ?????????????????????????????????????????????????? | | ?????????????????????????????????????????????????? | | ?????????????????????????????????????????????????? | | ???????##########????????????????????????????????? | | ???????# #????????????????????????????????? | | ???????# """#????????????????????????????##### | | ???????# """#???????###??????????#####???# | | ???????# """#????# ##Y############ # ###?# | | ???????# #????# @ + #?# | | ???????# """#????##"Y"## #### #?# | | ???????# """#?????#"""## #??# #?# | | ???????# """#?????###### #??# #?# | | ???????# #??#####??## #### #?# | | ??????######+##+####"T"#### # #?# | | ??????# # #?# | | ??????# < + #?# | | ??????# /[] # #?#! | | ??????#####!! ####### ### # #?# | | ??????????#!! #?????#" "#?### ##########/###?##### | | ??????????#####?????#####???# #????????# #???????? | | ????????????????????#########+########## ###?????? | | ????????????????????# #| "#?????? | | ???????????????????## #[ #?????? | | ???????????????????# # "#?????? | | ???????????????????## # ######### | | ???????????????????# # # | | ???????????????????## # # | | ????????????????????# # # | | ????????????????????# # # | | ????????????????????##########+######### ########+ | | ????????????????????????????# | | ????????????????????????????# ################# | | ????????????????????????????# #=! #?????# | +----------------------------------------------------+ Best States ------------- Heat Dissipation 39 Coolant Potential 50 Energy Generation 15 Energy Capacity 250 Matter Stores 300 Matter Capacity 300 Sight Range 21 Terrain Scan Range 14 Terrain Scan Density 10 Armor Coverage 800 Propulsion Shielding 33 Evasion (%) 55 Item Schematics ----------------- None Robot Schematics ------------------ A-02 Transporter | -9/Recycling | Hacked Fabricated ------------ Nothing Repaired ---------- Nothing Studied --------- None Alien Tech Used ----------------- None Achievements -------------- Survival Of The Most Covered Challenges ------------ None Game ------ Seed AntimatterSlugAutopenetrator Manual? 0 Play Time 00:27:29 Cumulative 101.2 hours Start 2025.12.27 @ 20:21:56 End 2025.12.27 @ 21:13:32 Sessions 1 Manual Loads 0 Difficulty Rogue Special Mode None Game No. 73 Rogue 73 Adventurer 0 Explorer 0 Win Type - Total 0 Types 0/0/0/0/0/0/0/0/0/0 Lore% 28 Gallery% 42 Achievement% 22 Wizard Run 0 Options --------- Layout 1 ASCII 0 Keyboard 0 Movement Mouse Keybinds 0 Fullscreen 0 Font 28/SmallcapsGlow Map View 59x39 Zoom Use 0% Tactical HUD 1 Map Filters NONE Filters NONE Steam 1 RUN: f708b2ed-a73a-49b0-a7c9-a6716d5c6919